[Event "Early-Titled-Tuesday-Blitz-November-28-2023"]
[Site "Chess.com"]
[Date "2023.11.28"]
[Round "7"]
[White "Der_Balak_3Halak"]
[Black "Barmen_EV"]
[Result "1-0"]
[WhiteElo "2314"]
[BlackElo "2485"]
[TimeControl "180+1"]
[EndTime "9:23:50 PST"]
[Termination "Der_Balak_3Halak won by checkmate"]

1. b3 {[%clk 0:03:00.9]} 1... f5 {[%clk 0:02:59.3]} 2. Bb2 {[%clk 0:02:53.2]}
2... Nf6 {[%clk 0:03:00]} 3. e3 {[%clk 0:02:53.2]} 3... g6 {[%clk 0:03:00.5]} 4.
Nf3 {[%clk 0:02:51.6]} 4... Bg7 {[%clk 0:03:00.6]} 5. c4 {[%clk 0:02:52.3]} 5...
O-O {[%clk 0:03:01]} 6. Nc3 {[%clk 0:02:52.2]} 6... d6 {[%clk 0:03:01.5]} 7. d4
{[%clk 0:02:50.1]} 7... Qe8 {[%clk 0:03:01.9]} 8. d5 {[%clk 0:02:46.8]} 8... a5
{[%clk 0:03:01]} 9. Be2 {[%clk 0:02:45.4]} 9... Na6 {[%clk 0:03:01.6]} 10. O-O
{[%clk 0:02:43.7]} 10... Bd7 {[%clk 0:03:02.2]} 11. Nd4 {[%clk 0:02:41.1]} 11...
c6 {[%clk 0:03:01.3]} 12. Bf3 {[%clk 0:02:37.4]} 12... Nc5 {[%clk 0:03:01.2]}
13. a3 {[%clk 0:02:31.3]} 13... g5 {[%clk 0:02:55.8]} 14. b4 {[%clk 0:02:27.1]}
14... axb4 {[%clk 0:02:55.3]} 15. axb4 {[%clk 0:02:28]} 15... Rxa1 {[%clk
0:02:55.9]} 16. Bxa1 {[%clk 0:02:25.3]} 16... Nce4 {[%clk 0:02:53.7]} 17. dxc6
{[%clk 0:02:18.2]} 17... bxc6 {[%clk 0:02:50.1]} 18. b5 {[%clk 0:02:07.9]} 18...
c5 {[%clk 0:02:47.5]} 19. Nde2 {[%clk 0:01:54.3]} 19... Nxc3 {[%clk 0:02:36.2]}
20. Nxc3 {[%clk 0:01:51.9]} 20... g4 {[%clk 0:02:27.3]} 21. Bd5+ {[%clk
0:01:44.2]} 21... Nxd5 {[%clk 0:02:24.2]} 22. Nxd5 {[%clk 0:01:45.1]} 22... e5
{[%clk 0:02:18.6]} 23. Nb6 {[%clk 0:01:27.8]} 23... Qe7 {[%clk 0:02:17.5]} 24.
Nxd7 {[%clk 0:01:25.4]} 24... Qxd7 {[%clk 0:02:18.1]} 25. Qd5+ {[%clk
0:01:23.7]} 25... Kh8 {[%clk 0:02:18.6]} 26. Rd1 {[%clk 0:01:23.7]} 26... f4
{[%clk 0:02:15.2]} 27. Qxd6 {[%clk 0:01:14.2]} 27... Qe8 {[%clk 0:02:14]} 28.
exf4 {[%clk 0:00:55.7]} 28... Rxf4 {[%clk 0:02:03]} 29. Qd8 {[%clk 0:00:48.9]}
29... Qg8 {[%clk 0:01:59.6]} 30. b6 {[%clk 0:00:38]} 30... Rxc4 {[%clk
0:01:52.7]} 31. Qxg8+ {[%clk 0:00:31.2]} 31... Kxg8 {[%clk 0:01:53.6]} 32. b7
{[%clk 0:00:32.1]} 32... Rb4 {[%clk 0:01:53.4]} 33. Rd8+ {[%clk 0:00:31]} 33...
Bf8 {[%clk 0:01:53.4]} 34. b8=Q {[%clk 0:00:30.5]} 34... Rxb8 {[%clk 0:01:54.3]}
35. Rxb8 {[%clk 0:00:30.6]} 35... Kf7 {[%clk 0:01:54.5]} 36. Bxe5 {[%clk
0:00:29]} 36... c4 {[%clk 0:01:52.6]} 37. Rb7+ {[%clk 0:00:27.8]} 37... Ke6
{[%clk 0:01:52.8]} 38. Bc3 {[%clk 0:00:27.9]} 38... h5 {[%clk 0:01:52.4]} 39.
Rh7 {[%clk 0:00:27.5]} 39... Kd5 {[%clk 0:01:50.9]} 40. Rxh5+ {[%clk 0:00:27.3]}
40... Ke4 {[%clk 0:01:51.8]} 41. Rh8 {[%clk 0:00:21.2]} 41... Bd6 {[%clk
0:01:50.3]} 42. Re8+ {[%clk 0:00:19.8]} 42... Kf5 {[%clk 0:01:49]} 43. f3 {[%clk
0:00:19]} 43... g3 {[%clk 0:01:48]} 44. hxg3 {[%clk 0:00:18.7]} 44... Bxg3
{[%clk 0:01:48.9]} 45. Kf1 {[%clk 0:00:17.9]} 45... Bh4 {[%clk 0:01:47.7]} 46.
Ke2 {[%clk 0:00:18.8]} 46... Kf4 {[%clk 0:01:48.6]} 47. Re4+ {[%clk 0:00:18.5]}
47... Kg3 {[%clk 0:01:49.5]} 48. Rg4+ {[%clk 0:00:18.5]} 48... Kh2 {[%clk
0:01:49.7]} 49. Rxh4+ {[%clk 0:00:19]} 49... Kg1 {[%clk 0:01:50.6]} 50. Bd4+
{[%clk 0:00:18.4]} 50... Kxg2 {[%clk 0:01:50.5]} 51. Rg4+ {[%clk 0:00:18.1]}
51... Kh3 {[%clk 0:01:49.1]} 52. Kf2 {[%clk 0:00:18.3]} 52... c3 {[%clk
0:01:50]} 53. Bf6 {[%clk 0:00:18.1]} 53... c2 {[%clk 0:01:50.9]} 54. Rh4# {[%clk
0:00:18.5]} 1-0

[Event "Early-Titled-Tuesday-Blitz-November-28-2023"]
[Site "Chess.com"]
[Date "2023.11.28"]
[Round "7"]
[White "xamax2000"]
[Black "GmSergioBarrientos"]
[Result "1-0"]
[WhiteElo "2931"]
[BlackElo "2721"]
[TimeControl "180+1"]
[EndTime "9:23:51 PST"]
[Termination "xamax2000 won by checkmate"]

1. Nf3 {[%clk 0:03:00.9]} 1... Nf6 {[%clk 0:02:55.6]} 2. c4 {[%clk 0:03:01.4]}
2... e6 {[%clk 0:02:55.5]} 3. g3 {[%clk 0:03:01.1]} 3... d5 {[%clk 0:02:52]} 4.
Bg2 {[%clk 0:03:02]} 4... dxc4 {[%clk 0:02:46.8]} 5. Qa4+ {[%clk 0:03:00.6]}
5... Nbd7 {[%clk 0:02:46.8]} 6. Qxc4 {[%clk 0:03:00.3]} 6... a6 {[%clk 0:02:47]}
7. Qb3 {[%clk 0:02:52.5]} 7... c5 {[%clk 0:02:44.5]} 8. d3 {[%clk 0:02:45.9]}
8... Bd6 {[%clk 0:02:41.5]} 9. a4 {[%clk 0:02:44.1]} 9... Rb8 {[%clk 0:02:38]}
10. a5 {[%clk 0:02:39.4]} 10... O-O {[%clk 0:02:37.2]} 11. O-O {[%clk
0:02:38.8]} 11... Bc7 {[%clk 0:02:34.7]} 12. Bd2 {[%clk 0:02:37.8]} 12... Nd5
{[%clk 0:02:30.6]} 13. Rc1 {[%clk 0:02:35.3]} 13... Ne7 {[%clk 0:02:30.3]} 14.
Qa3 {[%clk 0:02:12.7]} 14... Nc6 {[%clk 0:02:29.5]} 15. Bc3 {[%clk 0:02:12.9]}
15... Re8 {[%clk 0:02:16.1]} 16. Nbd2 {[%clk 0:02:11.8]} 16... Bd6 {[%clk
0:02:10.8]} 17. Nc4 {[%clk 0:02:09.4]} 17... Bf8 {[%clk 0:02:10.5]} 18. Qb3
{[%clk 0:02:07.4]} 18... Nf6 {[%clk 0:02:04.7]} 19. Nfe5 {[%clk 0:02:04.4]}
19... Nb4 {[%clk 0:01:55.8]} 20. d4 {[%clk 0:01:42.6]} 20... Nfd5 {[%clk
0:01:55]} 21. dxc5 {[%clk 0:01:43]} 21... Bxc5 {[%clk 0:01:52.7]} 22. Be1 {[%clk
0:01:43.3]} 22... Qe7 {[%clk 0:01:30.6]} 23. e4 {[%clk 0:01:37.1]} 23... Nf6
{[%clk 0:01:29.7]} 24. Bxb4 {[%clk 0:01:32.1]} 24... Bxb4 {[%clk 0:01:29.6]} 25.
Nd3 {[%clk 0:01:31.7]} 25... Bc5 {[%clk 0:01:22.7]} 26. e5 {[%clk 0:01:30.5]}
26... Nd7 {[%clk 0:01:19.4]} 27. Nxc5 {[%clk 0:01:27.7]} 27... Nxc5 {[%clk
0:01:16.5]} 28. Qa3 {[%clk 0:01:27.9]} 28... Nd7 {[%clk 0:01:12.7]} 29. Qxe7
{[%clk 0:01:25.2]} 29... Rxe7 {[%clk 0:01:13.6]} 30. Nd6 {[%clk 0:01:25.6]}
30... Nxe5 {[%clk 0:01:08.2]} 31. Nxc8 {[%clk 0:01:22.3]} 31... Rd7 {[%clk
0:01:06.6]} 32. Nb6 {[%clk 0:01:22.6]} 32... Rd2 {[%clk 0:01:06.6]} 33. b4
{[%clk 0:01:20.8]} 33... h5 {[%clk 0:01:06.4]} 34. Rd1 {[%clk 0:01:18.9]} 34...
Rb2 {[%clk 0:01:06.1]} 35. Rab1 {[%clk 0:01:18.6]} 35... Ra2 {[%clk 0:01:03.7]}
36. h3 {[%clk 0:01:19]} 36... h4 {[%clk 0:01:01]} 37. g4 {[%clk 0:01:18]} 37...
Ng6 {[%clk 0:01:01.2]} 38. Rbc1 {[%clk 0:01:16.3]} 38... Nf4 {[%clk 0:01:01.4]}
39. Bf1 {[%clk 0:01:15.9]} 39... Rb2 {[%clk 0:01:00.6]} 40. Rc4 {[%clk
0:01:13.6]} 40... g5 {[%clk 0:01:00.3]} 41. Nd7 {[%clk 0:01:10.9]} 41... Ra8
{[%clk 0:00:56.3]} 42. Nf6+ {[%clk 0:01:08.5]} 42... Kg7 {[%clk 0:00:56.4]} 43.
Nh5+ {[%clk 0:01:08.9]} 43... Nxh5 {[%clk 0:00:54.5]} 44. gxh5 {[%clk
0:01:09.8]} 44... Kh6 {[%clk 0:00:55.3]} 45. Rd7 {[%clk 0:01:07.8]} 45... f5
{[%clk 0:00:52.7]} 46. Re7 {[%clk 0:01:01.7]} 46... Kxh5 {[%clk 0:00:51.3]} 47.
Rxe6 {[%clk 0:01:01.7]} 47... Rd8 {[%clk 0:00:51.1]} 48. Be2+ {[%clk 0:01:01.7]}
48... g4 {[%clk 0:00:50.6]} 49. hxg4+ {[%clk 0:01:01.9]} 49... Kg5 {[%clk
0:00:51.5]} 50. f4# {[%clk 0:00:59.9]} 1-0

[Event "Early-Titled-Tuesday-Blitz-November-28-2023"]
[Site "Chess.com"]
[Date "2023.11.28"]
[Round "7"]
[White "Anton_Demchenko"]
[Black "zajka-molotok"]
[Result "1-0"]
[WhiteElo "2939"]
[BlackElo "2499"]
[TimeControl "180+1"]
[EndTime "9:23:51 PST"]
[Termination "Anton_Demchenko won by resignation"]

1. e4 {[%clk 0:03:00.8]} 1... c6 {[%clk 0:02:57.4]} 2. d4 {[%clk 0:03:01.2]}
2... d5 {[%clk 0:02:58]} 3. e5 {[%clk 0:03:01.9]} 3... Bf5 {[%clk 0:02:57.7]} 4.
Bd3 {[%clk 0:03:02.6]} 4... Bxd3 {[%clk 0:02:57.3]} 5. Qxd3 {[%clk 0:03:03.5]}
5... e6 {[%clk 0:02:57.6]} 6. c3 {[%clk 0:03:04.4]} 6... c5 {[%clk 0:02:55.2]}
7. Ne2 {[%clk 0:03:05.3]} 7... Nc6 {[%clk 0:02:54.8]} 8. O-O {[%clk 0:03:04.8]}
8... Nge7 {[%clk 0:02:53.3]} 9. Nd2 {[%clk 0:03:04.2]} 9... Nf5 {[%clk
0:02:44.3]} 10. Nf3 {[%clk 0:03:04.7]} 10... Be7 {[%clk 0:02:31.8]} 11. g4
{[%clk 0:03:04]} 11... Nh4 {[%clk 0:02:26.1]} 12. Nxh4 {[%clk 0:03:04.6]} 12...
Bxh4 {[%clk 0:02:26.7]} 13. f4 {[%clk 0:03:05.4]} 13... Be7 {[%clk 0:02:08.1]}
14. Be3 {[%clk 0:03:04.5]} 14... cxd4 {[%clk 0:02:03]} 15. cxd4 {[%clk
0:03:05.4]} 15... h5 {[%clk 0:02:02.3]} 16. f5 {[%clk 0:03:05.7]} 16... hxg4
{[%clk 0:01:22.4]} 17. fxe6 {[%clk 0:03:05.9]} 17... fxe6 {[%clk 0:01:22.9]} 18.
Nf4 {[%clk 0:03:06.5]} 18... Rh6 {[%clk 0:01:11.8]} 19. Ng6 {[%clk 0:03:06.3]}
19... Nb4 {[%clk 0:00:52.2]} 20. Qb5+ {[%clk 0:03:00.4]} 20... Qd7 {[%clk
0:00:44.4]} 21. Qxd7+ {[%clk 0:03:00.4]} 21... Kxd7 {[%clk 0:00:45.3]} 22. Bxh6
{[%clk 0:03:00.5]} 22... gxh6 {[%clk 0:00:32.3]} 23. Rf7 {[%clk 0:03:00.9]}
23... Nc6 {[%clk 0:00:31.5]} 24. Rc1 {[%clk 0:02:54.3]} 24... Rg8 {[%clk
0:00:29.1]} 25. Nxe7 {[%clk 0:02:34.3]} 25... Nxe7 {[%clk 0:00:25.2]} 26. Kg2
{[%clk 0:02:18.1]} 26... h5 {[%clk 0:00:18.8]} 27. Rh7 {[%clk 0:02:16.9]} 27...
Rf8 {[%clk 0:00:14.9]} 28. Rf1 {[%clk 0:02:04.9]} 28... Re8 {[%clk 0:00:09.9]}
29. Rff7 {[%clk 0:02:01.1]} 29... Kd8 {[%clk 0:00:09.3]} 30. Kg3 {[%clk
0:01:42.4]} 30... Nf5+ {[%clk 0:00:07.7]} 31. Kf4 {[%clk 0:01:43.1]} 31... Re7
{[%clk 0:00:01.2]} 32. Rxe7 {[%clk 0:01:43.3]} 32... Nxe7 {[%clk 0:00:02.1]} 33.
Rxh5 {[%clk 0:01:43.7]} 33... Nc6 {[%clk 0:00:01.5]} 34. Ke3 {[%clk 0:01:43.3]}
34... Na5 {[%clk 0:00:01.2]} 35. b3 {[%clk 0:01:39.8]} 35... Nc6 {[%clk
0:00:01.3]} 36. Rg5 {[%clk 0:01:37.4]} 36... Nb4 {[%clk 0:00:01.4]} 37. Rxg4
{[%clk 0:01:34.8]} 37... Nxa2 {[%clk 0:00:02]} 38. h4 {[%clk 0:01:33.7]} 1-0

[Event "Early-Titled-Tuesday-Blitz-November-28-2023"]
[Site "Chess.com"]
[Date "2023.11.28"]
[Round "7"]
[White "VitaliyChayka"]
[Black "Shuvalov"]
[Result "1-0"]
[WhiteElo "2434"]
[BlackElo "2566"]
[TimeControl "180+1"]
[EndTime "9:23:59 PST"]
[Termination "VitaliyChayka won by checkmate"]

1. d4 {[%clk 0:03:00.9]} 1... Nf6 {[%clk 0:02:08.4]} 2. Bf4 {[%clk 0:03:01.1]}
2... d5 {[%clk 0:02:06]} 3. e3 {[%clk 0:03:01.3]} 3... e6 {[%clk 0:02:06.3]} 4.
Nf3 {[%clk 0:03:00.9]} 4... c5 {[%clk 0:02:06.6]} 5. c3 {[%clk 0:02:58.7]} 5...
Nc6 {[%clk 0:02:06.9]} 6. Nbd2 {[%clk 0:02:57.9]} 6... Bd6 {[%clk 0:02:07.2]} 7.
Bg3 {[%clk 0:02:58.1]} 7... O-O {[%clk 0:02:06.7]} 8. Bd3 {[%clk 0:02:58.1]}
8... b6 {[%clk 0:02:06.9]} 9. Ne5 {[%clk 0:02:58.3]} 9... Ne7 {[%clk 0:02:05.5]}
10. f4 {[%clk 0:02:57.1]} 10... Bb7 {[%clk 0:02:04.5]} 11. Qf3 {[%clk
0:02:57.3]} 11... Nf5 {[%clk 0:02:03]} 12. Bf2 {[%clk 0:02:57.3]} 12... Be7
{[%clk 0:02:03.2]} 13. O-O {[%clk 0:02:56.7]} 13... Nd6 {[%clk 0:02:02.5]} 14.
Qh3 {[%clk 0:02:56.4]} 14... Nfe4 {[%clk 0:01:53.9]} 15. Rad1 {[%clk 0:02:56.8]}
15... Qc8 {[%clk 0:01:51.3]} 16. dxc5 {[%clk 0:02:56.1]} 16... bxc5 {[%clk
0:01:49.2]} 17. Nxe4 {[%clk 0:02:55.9]} 17... dxe4 {[%clk 0:01:42.4]} 18. Be2
{[%clk 0:02:55.9]} 18... c4 {[%clk 0:01:31.4]} 19. Bh4 {[%clk 0:02:37.1]} 19...
f6 {[%clk 0:01:27]} 20. Bg4 {[%clk 0:02:35.4]} 20... Nf5 {[%clk 0:01:18.7]} 21.
Bxf5 {[%clk 0:02:26.7]} 21... exf5 {[%clk 0:01:19.6]} 22. Rd7 {[%clk 0:02:21.7]}
22... Bc5 {[%clk 0:00:19.5]} 23. Qg3 {[%clk 0:01:48.2]} 23... Bxe3+ {[%clk
0:00:09.4]} 24. Kh1 {[%clk 0:01:46.4]} 24... g6 {[%clk 0:00:09.3]} 25. Rxh7
{[%clk 0:01:14.5]} 25... Kxh7 {[%clk 0:00:06.3]} 26. Qxg6+ {[%clk 0:01:14.1]}
26... Kh8 {[%clk 0:00:06.7]} 27. Nf7+ {[%clk 0:01:03.1]} 27... Rxf7 {[%clk
0:00:06.4]} 28. Qxf7 {[%clk 0:01:04]} 28... Bd4 {[%clk 0:00:01.9]} 29. cxd4
{[%clk 0:01:03.2]} 29... e3 {[%clk 0:00:01.2]} 30. Bxf6# {[%clk 0:01:02.8]} 1-0

[Event "Early-Titled-Tuesday-Blitz-November-28-2023"]
[Site "Chess.com"]
[Date "2023.11.28"]
[Round "7"]
[White "kingofthenil"]
[Black "Volodar_Murzin"]
[Result "0-1"]
[WhiteElo "2722"]
[BlackElo "2933"]
[TimeControl "180+1"]
[EndTime "9:24:02 PST"]
[Termination "Volodar_Murzin won on time"]

1. e4 {[%clk 0:03:00.9]} 1... c5 {[%clk 0:02:59.9]} 2. Nf3 {[%clk 0:03:00.8]}
2... e6 {[%clk 0:03:00.6]} 3. d4 {[%clk 0:02:59.4]} 3... cxd4 {[%clk 0:03:01.5]}
4. Bg5 {[%clk 0:02:55.3]} 4... Qb6 {[%clk 0:02:57.8]} 5. Qxd4 {[%clk 0:02:55]}
5... Nc6 {[%clk 0:02:32.3]} 6. Qxb6 {[%clk 0:02:52.9]} 6... axb6 {[%clk
0:02:33.2]} 7. Nc3 {[%clk 0:01:53.4]} 7... Bb4 {[%clk 0:02:30.9]} 8. Bd2 {[%clk
0:01:44.2]} 8... Nf6 {[%clk 0:02:30]} 9. Bd3 {[%clk 0:01:30.9]} 9... Ng4 {[%clk
0:02:27.5]} 10. h3 {[%clk 0:01:13.3]} 10... Nge5 {[%clk 0:02:27.1]} 11. Nxe5
{[%clk 0:01:14]} 11... Nxe5 {[%clk 0:02:27.9]} 12. f4 {[%clk 0:01:14.2]} 12...
Nc6 {[%clk 0:02:19.9]} 13. Nb5 {[%clk 0:01:12.8]} 13... Bxd2+ {[%clk 0:02:17.6]}
14. Kxd2 {[%clk 0:01:12.9]} 14... Ke7 {[%clk 0:02:18.5]} 15. e5 {[%clk
0:01:12.6]} 15... f6 {[%clk 0:02:18]} 16. Rhe1 {[%clk 0:01:08.7]} 16... fxe5
{[%clk 0:02:17.6]} 17. fxe5 {[%clk 0:01:09.6]} 17... Rf8 {[%clk 0:02:18.1]} 18.
Re2 {[%clk 0:01:03.9]} 18... h6 {[%clk 0:02:09.5]} 19. a3 {[%clk 0:01:04]} 19...
Ra5 {[%clk 0:02:08.1]} 20. Rae1 {[%clk 0:00:59.6]} 20... Rxb5 {[%clk 0:01:59.3]}
21. Bxb5 {[%clk 0:01:00.5]} 21... Nd4 {[%clk 0:02:00.2]} 22. Bd3 {[%clk
0:00:46.4]} 22... Nxe2 {[%clk 0:02:00.6]} 23. Rxe2 {[%clk 0:00:47.3]} 23... Rf1
{[%clk 0:01:55.6]} 24. Re4 {[%clk 0:00:44.2]} 24... Rf2+ {[%clk 0:01:54]} 25.
Re2 {[%clk 0:00:42.5]} 25... Rf7 {[%clk 0:01:47.8]} 26. Re4 {[%clk 0:00:32.9]}
26... d5 {[%clk 0:01:44.7]} 27. exd6+ {[%clk 0:00:26.3]} 27... Kxd6 {[%clk
0:01:45.6]} 28. Rb4 {[%clk 0:00:25.3]} 28... Rf2+ {[%clk 0:01:44.1]} 29. Kc3
{[%clk 0:00:21.6]} 29... Rxg2 {[%clk 0:01:42.9]} 30. Rxb6+ {[%clk 0:00:21.9]}
30... Kc7 {[%clk 0:01:39.2]} 31. Rb4 {[%clk 0:00:21.7]} 31... g5 {[%clk
0:01:39.8]} 32. h4 {[%clk 0:00:13.3]} 32... g4 {[%clk 0:01:39.2]} 33. Kd4 {[%clk
0:00:08.8]} 33... Rh2 {[%clk 0:01:35.8]} 34. Ke5 {[%clk 0:00:08.5]} 34... Rxh4
{[%clk 0:01:35.7]} 35. Rc4+ {[%clk 0:00:08.8]} 35... Kb8 {[%clk 0:01:36.1]} 36.
Kf6 {[%clk 0:00:05.3]} 36... h5 {[%clk 0:01:34.4]} 37. Ke7 {[%clk 0:00:02.8]}
37... e5 {[%clk 0:01:30.2]} 38. Be4 {[%clk 0:00:02.9]} 38... g3 {[%clk
0:01:28.2]} 39. Rb4 {[%clk 0:00:02.9]} 39... Rxe4 {[%clk 0:01:22.1]} 40. Rxe4
{[%clk 0:00:02.6]} 40... g2 {[%clk 0:01:22.9]} 41. Re1 {[%clk 0:00:02.3]} 41...
h4 {[%clk 0:01:23.6]} 0-1

[Event "Early-Titled-Tuesday-Blitz-November-28-2023"]
[Site "Chess.com"]
[Date "2023.11.28"]
[Round "7"]
[White "Lady_Nika"]
[Black "DeArron_Fox"]
[Result "1-0"]
[WhiteElo "2571"]
[BlackElo "2470"]
[TimeControl "180+1"]
[EndTime "9:24:02 PST"]
[Termination "Lady_Nika won by resignation"]

1. g4 {[%clk 0:03:00.9]} 1... d5 {[%clk 0:02:11.4]} 2. h3 {[%clk 0:03:00.3]}
2... e5 {[%clk 0:02:10.5]} 3. Bg2 {[%clk 0:02:59.3]} 3... Nf6 {[%clk 0:02:08.1]}
4. e3 {[%clk 0:02:59.1]} 4... h5 {[%clk 0:02:01.3]} 5. g5 {[%clk 0:02:58.4]}
5... Ne4 {[%clk 0:02:01.4]} 6. h4 {[%clk 0:02:53.8]} 6... Bf5 {[%clk 0:01:47.5]}
7. d3 {[%clk 0:02:49.9]} 7... Nc5 {[%clk 0:01:47.6]} 8. Nc3 {[%clk 0:02:47]}
8... c6 {[%clk 0:01:47.3]} 9. Nge2 {[%clk 0:02:42.5]} 9... Nbd7 {[%clk
0:01:39.9]} 10. Bd2 {[%clk 0:02:41.6]} 10... f6 {[%clk 0:01:12.1]} 11. Ng3
{[%clk 0:02:38.2]} 11... Bg4 {[%clk 0:01:00.5]} 12. f3 {[%clk 0:02:36]} 12...
Be6 {[%clk 0:01:00]} 13. f4 {[%clk 0:02:30.3]} 13... exf4 {[%clk 0:00:12.1]} 14.
exf4 {[%clk 0:02:29.1]} 14... Bg4 {[%clk 0:00:12.1]} 15. Bf3 {[%clk 0:02:28.2]}
15... Qe7+ {[%clk 0:00:11.2]} 16. Kf2 {[%clk 0:02:28.2]} 16... Bxf3 {[%clk
0:00:10.3]} 17. Qxf3 {[%clk 0:02:27.8]} 17... O-O-O {[%clk 0:00:10.9]} 18. Rae1
{[%clk 0:02:26]} 18... Qf7 {[%clk 0:00:10.7]} 19. Re2 {[%clk 0:02:21.4]} 19...
Bd6 {[%clk 0:00:06.9]} 20. Rhe1 {[%clk 0:02:16.6]} 20... fxg5 {[%clk 0:00:06.7]}
21. fxg5 {[%clk 0:02:15.8]} 21... Qxf3+ {[%clk 0:00:03.6]} 22. Kxf3 {[%clk
0:02:15.7]} 22... Rhf8+ {[%clk 0:00:04.5]} 23. Kg2 {[%clk 0:02:15.9]} 23... Kc7
{[%clk 0:00:02.8]} 24. d4 {[%clk 0:02:12.3]} 24... Na6 {[%clk 0:00:02]} 25. a3
{[%clk 0:02:11]} 25... b5 {[%clk 0:00:02.3]} 26. Nd1 {[%clk 0:02:09.6]} 26...
Nb6 {[%clk 0:00:02.6]} 27. Ne3 {[%clk 0:02:07.1]} 27... g6 {[%clk 0:00:01.9]}
28. Ba5 {[%clk 0:02:04.4]} 28... Nb8 {[%clk 0:00:01.7]} 29. Nef1 {[%clk
0:01:54.5]} 29... Nd7 {[%clk 0:00:02.2]} 30. Re6 {[%clk 0:01:52.2]} 30... Bxg3
{[%clk 0:00:01.3]} 31. Nxg3 {[%clk 0:01:51.4]} 31... Kb7 {[%clk 0:00:02.2]} 32.
Rxg6 {[%clk 0:01:50.5]} 32... Nc4 {[%clk 0:00:02.2]} 33. Bb4 {[%clk 0:01:49.8]}
33... Rf7 {[%clk 0:00:01.7]} 34. Re7 {[%clk 0:01:47.7]} 34... Rxe7 {[%clk
0:00:01.5]} 35. Bxe7 {[%clk 0:01:48.6]} 35... Re8 {[%clk 0:00:02.4]} 36. Rg7
{[%clk 0:01:48.9]} 36... Nxb2 {[%clk 0:00:02.1]} 37. Nxh5 {[%clk 0:01:48.8]}
37... Nc4 {[%clk 0:00:01.8]} 38. Nf6 {[%clk 0:01:48.7]} 38... Ne3+ {[%clk
0:00:01.6]} 39. Kf3 {[%clk 0:01:46.1]} 39... Nxf6 {[%clk 0:00:02.2]} 40. gxf6
{[%clk 0:01:44.3]} 40... Nf5 {[%clk 0:00:02.4]} 41. Rh7 {[%clk 0:01:43.7]} 41...
Kc8 {[%clk 0:00:02.6]} 42. f7 {[%clk 0:01:37.9]} 42... Nxd4+ {[%clk 0:00:02.9]}
43. Kf2 {[%clk 0:01:34.8]} 1-0

[Event "Early-Titled-Tuesday-Blitz-November-28-2023"]
[Site "Chess.com"]
[Date "2023.11.28"]
[Round "7"]
[White "DenLaz"]
[Black "GaiozNigalidze"]
[Result "1/2-1/2"]
[WhiteElo "3031"]
[BlackElo "2687"]
[TimeControl "180+1"]
[EndTime "9:24:03 PST"]
[Termination "Game drawn by repetition"]

1. d4 {[%clk 0:03:00.9]} 1... d5 {[%clk 0:02:58.4]} 2. c4 {[%clk 0:03:01.6]}
2... e6 {[%clk 0:02:58.4]} 3. Nf3 {[%clk 0:03:02.5]} 3... Be7 {[%clk 0:02:58]}
4. g3 {[%clk 0:03:03.4]} 4... Nf6 {[%clk 0:02:58]} 5. Bg2 {[%clk 0:03:03.8]}
5... O-O {[%clk 0:02:57.8]} 6. Qc2 {[%clk 0:03:04.5]} 6... c6 {[%clk 0:02:56.6]}
7. O-O {[%clk 0:03:03.4]} 7... b6 {[%clk 0:02:56.6]} 8. Nc3 {[%clk 0:03:03.2]}
8... Bb7 {[%clk 0:02:56.3]} 9. e4 {[%clk 0:03:02.3]} 9... dxe4 {[%clk
0:02:55.4]} 10. Nxe4 {[%clk 0:03:02.5]} 10... Nxe4 {[%clk 0:02:56]} 11. Qxe4
{[%clk 0:03:02.2]} 11... Nd7 {[%clk 0:02:56.6]} 12. Bf4 {[%clk 0:03:02.6]} 12...
Nf6 {[%clk 0:02:56.3]} 13. Qe2 {[%clk 0:03:02.8]} 13... c5 {[%clk 0:02:53.2]}
14. Rad1 {[%clk 0:03:02]} 14... cxd4 {[%clk 0:02:48.9]} 15. Nxd4 {[%clk
0:03:02.4]} 15... Qc8 {[%clk 0:02:45.1]} 16. b3 {[%clk 0:02:54.1]} 16... Bxg2
{[%clk 0:02:36.7]} 17. Kxg2 {[%clk 0:02:53.9]} 17... Qb7+ {[%clk 0:02:36.9]} 18.
Qf3 {[%clk 0:02:54.4]} 18... Qxf3+ {[%clk 0:02:35.3]} 19. Kxf3 {[%clk
0:02:55.3]} 19... Rfc8 {[%clk 0:02:34.9]} 20. Rd3 {[%clk 0:02:48.3]} 20... a6
{[%clk 0:02:34.1]} 21. Rc1 {[%clk 0:02:41.9]} 21... Kf8 {[%clk 0:02:31.3]} 22.
Ke2 {[%clk 0:02:40.7]} 22... Ke8 {[%clk 0:02:30.3]} 23. Nf3 {[%clk 0:02:41.3]}
23... Rd8 {[%clk 0:02:24.3]} 24. Be3 {[%clk 0:02:39.5]} 24... Rxd3 {[%clk
0:02:22.5]} 25. Kxd3 {[%clk 0:02:40.4]} 25... Nd7 {[%clk 0:02:20.4]} 26. Nd2
{[%clk 0:02:37.5]} 26... Rc8 {[%clk 0:02:17.6]} 27. Ke2 {[%clk 0:02:34.9]} 27...
h6 {[%clk 0:02:16.2]} 28. h4 {[%clk 0:02:32.7]} 28... Rc6 {[%clk 0:02:15.8]} 29.
Nf3 {[%clk 0:02:31.3]} 29... Kd8 {[%clk 0:02:11.1]} 30. Rd1 {[%clk 0:02:30.6]}
30... Kc8 {[%clk 0:02:08.2]} 31. Rxd7 {[%clk 0:02:27.1]} 31... Kxd7 {[%clk
0:02:08]} 32. Ne5+ {[%clk 0:02:27.7]} 32... Kc7 {[%clk 0:02:07.9]} 33. Nxc6
{[%clk 0:02:28.2]} 33... Kxc6 {[%clk 0:02:08.6]} 34. h5 {[%clk 0:02:28.9]} 34...
Bf6 {[%clk 0:01:59.9]} 35. Kd3 {[%clk 0:02:27.7]} 35... Bb2 {[%clk 0:01:58.5]}
36. g4 {[%clk 0:02:26.7]} 36... f6 {[%clk 0:01:56]} 37. f3 {[%clk 0:02:26.6]}
37... Be5 {[%clk 0:01:55.3]} 38. Bd4 {[%clk 0:02:24.7]} 38... Bxd4 {[%clk
0:01:55.3]} 39. Kxd4 {[%clk 0:02:25.6]} 39... Kd6 {[%clk 0:01:35.8]} 40. b4
{[%clk 0:02:25.2]} 40... Kc6 {[%clk 0:01:32.7]} 41. a3 {[%clk 0:02:09.4]} 41...
a5 {[%clk 0:01:06.7]} 42. bxa5 {[%clk 0:01:40.6]} 42... bxa5 {[%clk 0:01:06.3]}
43. c5 {[%clk 0:01:40.9]} 43... Kb5 {[%clk 0:00:44]} 44. a4+ {[%clk 0:01:24.4]}
44... Kc6 {[%clk 0:00:42.7]} 45. f4 {[%clk 0:01:23.9]} 45... Kc7 {[%clk
0:00:23.2]} 46. Kc4 {[%clk 0:01:18.9]} 46... Kc6 {[%clk 0:00:23.1]} 47. Kd4
{[%clk 0:01:19.5]} 47... Kc7 {[%clk 0:00:23.4]} 48. Kc4 {[%clk 0:01:18.6]} 48...
Kc6 {[%clk 0:00:23.7]} 49. Kd4 {[%clk 0:01:19.1]} 1/2-1/2